{"text_format":"1","workbook":"xlsx","n_sheets":5,"sheets":["بولش","تشييك","فصوص","مكافآت","خصومات"],"not_rendered":{"charts":0,"images":0,"macros":1,"external_links":0,"defined_names":14,"comments":0,"pivot_tables":0},"unopened":[],"bounds":{"document_bytes":16777216,"sheet_cells":100000,"rows_first":2000,"rows_last":500,"rows_between":2000,"halvings":0,"cell_chars":16384,"cell_head_chars":4096},"cells_cut":0,"cells_raw":0,"read":"whole","date_system":"1900"}

{"sheet":"بولش","index":0,"n_rows":36,"n_cols":38,"rows_kept":36,"cut":false,"hidden":false,"merged":[[0,0,0,2],[0,4,0,5]]}
[{"$f":"#REF!","v":{"$error":"#REF!"}},null,null,null,"مكافآت و خصميات الانتاج شهر",null,null,null,null,null,null,null,null,null,null,null,null,null,null,null,null,null,null,null,{"$f":"AL3","v":"بولش"},null,null,null,null,null,null,null,null,null,null,null,null,"S"]
["Sl.","الجنسية","File.","Name of the employees","اسماء العاملين",1,2,3,4,5,6,7,8,9,10,11,12,13,14,15,16,17,18,19,20,21,22,23,24,25,26,27,28,29,30,31,"المجموع"]
[null,null,null,"POLISH    ","بولش",null,null,null,null,null,null,null,null,null,null,null,null,null,null,null,null,null,null,null,null,null,null,null,null,null,null,null,null,null,null,null,null,{"$f":"IF(AK$1=1,\"\",IF(E3=\"\",\"\",E3))","v":"بولش"}]
[{"$f":" ROW()-3","v":1},"Indian",182,"Yoonus manat"," يونس مانات",null,null,null,null,null,null,null,null,null,null,null,null,null,null,null,null,null,null,null,null,null,null,null,null,null,null,null,null,null,null,null,{"$f":"SUM(F4:AJ4)","v":0},{"$f":"IF(AK$1=1,\"\",IF(C4=\"\",\"\",C4))","v":182}]
[{"$f":" ROW()-3","v":2},"Indian",183,"Shaikh Razaul "," شيخ رضاؤل",null,null,null,null,null,null,null,null,null,null,null,null,null,null,null,null,null,null,-10,null,null,null,null,null,null,null,null,null,null,null,null,-10,183]
[{"$f":" ROW()-3","v":3},"Bangali",694,"Ratan Miah Matin Miah","رتن ميان متين مياه",null,null,null,null,null,null,null,null,null,null,null,null,null,null,null,null,null,null,10,null,null,null,null,null,null,null,null,null,null,null,null,10,694]
[{"$f":" ROW()-3","v":4},"Bangali",null,null,null,null,null,null,null,null,null,null,null,null,null,null,null,null,null,null,null,null,null,null,null,null,null,null,null,null,null,null,null,null,null,null,0,""]
[5,"Bangali",null,null,null,null,null,null,null,null,null,null,null,null,null,null,null,null,null,null,null,null,null,null,null,null,null,null,null,null,null,null,null,null,null,null,0,""]
[6,"Bangali",null,null,null,null,null,null,null,null,null,null,null,null,null,null,null,null,null,null,null,null,null,null,null,null,null,null,null,null,null,null,null,null,null,null,0,""]
[7,"Bangali",null,null,null,null,null,null,null,null,null,null,null,null,null,null,null,null,null,null,null,null,null,null,null,null,null,null,null,null,null,null,null,null,null,null,0,""]
[8,"Indian",null,null,null,null,null,null,null,null,null,null,null,null,null,null,null,null,null,null,null,null,null,null,null,null,null,null,null,null,null,null,null,null,null,null,0,""]
[9,"Bangali",null,null,null,null,null,null,null,null,null,null,null,null,null,null,null,null,null,null,null,null,null,null,null,null,null,null,null,null,null,null,null,null,null,null,0,""]
[10,"Bangali",null,null,null,null,null,null,null,null,null,null,null,null,null,null,null,null,null,null,null,null,null,null,null,null,null,null,null,null,null,null,null,null,null,null,0,""]
[11,"Bangali",null,null,null,null,null,null,null,null,null,null,null,null,null,null,null,null,null,null,null,null,null,null,null,null,null,null,null,null,null,null,null,null,null,null,0,""]
[12,"Bangali",null,null,null,null,null,null,null,null,null,null,null,null,null,null,null,null,null,null,null,null,null,null,null,null,null,null,null,null,null,null,null,null,null,null,0,""]
[{"$f":"ROW()-3","v":13},"Nepali",null,null,null,null,null,null,null,null,null,null,null,null,null,null,null,null,null,null,null,null,null,null,null,null,null,null,null,null,null,null,null,null,null,null,{"$f":"SUM(G16:AJ16)","v":0},""]
[{"$f":" ROW()-3","v":14},null,null,null,null,null,null,null,null,null,null,null,null,null,null,null,null,null,null,null,null,null,null,null,null,null,null,null,null,null,null,null,null,null,null,null,0,""]
[15,"Nepali",null,null,null,null,null,null,null,null,null,null,null,null,null,null,null,null,null,null,null,null,null,null,null,null,null,null,null,null,null,null,null,null,null,null,0,""]
[16,"Nepali",null,null,null,null,null,null,null,null,null,null,null,null,null,null,null,null,null,null,null,null,null,null,null,null,null,null,null,null,null,null,null,null,null,null,0,""]
[17,"Nepali",null,null,null,null,null,null,null,null,null,null,null,null,null,null,null,null,null,null,null,null,null,null,null,null,null,null,null,null,null,null,null,null,null,null,0,""]
[18,null,null,null,null,null,null,null,null,null,null,null,null,null,null,null,null,null,null,null,null,null,null,null,null,null,null,null,null,null,null,null,null,null,null,null,0,""]
[19,"Bangali",null,null,null,null,null,null,null,null,null,null,null,null,null,null,null,null,null,null,null,null,null,null,null,null,null,null,null,null,null,null,null,null,null,null,0,""]
[{"$f":"ROW()-3","v":20},"Bangali",null,null,null,null,null,null,null,null,null,null,null,null,null,null,null,null,null,null,null,null,null,null,null,null,null,null,null,null,null,null,null,null,null,null,0,""]
[5,"BANGALI",null,null,null,null,null,null,null,null,null,null,null,null,null,null,null,null,null,null,null,null,null,null,null,null,null,null,null,null,null,null,null,null,null,null,0,""]
[{"$f":" ROW()-3","v":22},null,null,null,null,null,null,null,null,null,null,null,null,null,null,null,null,null,null,null,null,null,null,null,null,null,null,null,null,null,null,null,null,null,null,null,0,""]
[{"$f":" ROW()-3","v":23},"Bangali",null,null,null,null,null,null,null,null,null,null,null,null,null,null,null,null,null,null,null,null,null,null,null,null,null,null,null,null,null,null,null,null,null,null,0,""]
[{"$f":" ROW()-3","v":24},null,null,null,null,null,null,null,null,null,null,null,null,null,null,null,null,null,null,null,null,null,null,null,null,null,null,null,null,null,null,null,null,null,null,null,{"$f":"SUM(F27:AJ27)","v":0},""]
[null,null,null,null,null,null,null,null,null,null,null,null,null,null,null,null,null,null,null,null,null,null,null,null,null,null,null,null,null,null,null,null,null,null,null,null,{"$f":"SUM(F28:AJ28)","v":0}]
[null,null,null,null,null,null,null,null,null,null,null,null,null,null,null,null,null,null,null,null,null,null,null,null,null,null,null,null,null,null,null,null,null,null,null,null,{"$f":"SUM(F29:AJ29)","v":0}]
["الــــــــــــــــــــــمـــــــــــــــــــــــــــــــــــجــــــــــــــــــــــــــــــــــــــمــــــــــــــــــــــــــــــــــــــــــــوع","الــــــــــــــــــــــمـــــــــــــــــــــــــــــــــــجــــــــــــــــــــــــــــــــــــــمــــــــــــــــــــــــــــــــــــــــــــوع",null,null,null,{"$f":"SUM(F5:F29)","v":0},{"$f":"SUM(G5:G29)","v":0},0,0,0,0,0,0,0,0,0,0,0,0,0,0,0,0,0,0,0,0,0,0,0,0,0,0,0,0,0,{"$f":"SUM(F30:AJ30)","v":0}]
[]
[]
[null,null,null,null,null,null,null,null,null,null,null,null,null,null,null,null,null,null,null,null,null,null,null,null,null,null,null,null,null,null,null,null,null,null,null,"مجموع المكافات",{"$f":"SUMIF(AK4:AK29,\">=0\")","v":10}]
[null,null,null,null,null,null,null,null,null,null,null,null,null,null,null,null,null,null,null,null,null,null,null,null,null,null,null,null,null,null,null,null,null,null,null,"مجموع الخصميات",{"$f":"SUMIF(AK4:AK29,\"<=0\")","v":-10}]
[null,null,null,null,{"$f":"#REF!","v":{"$error":"#REF!"}},{"$f":"E35","v":{"$error":"#REF!"}},{"$f":"F35+1","v":{"$error":"#REF!"}},{"$error":"#REF!"},{"$error":"#REF!"},{"$error":"#REF!"},{"$error":"#REF!"},{"$error":"#REF!"},{"$error":"#REF!"},{"$error":"#REF!"},{"$error":"#REF!"},{"$error":"#REF!"},{"$error":"#REF!"},{"$error":"#REF!"},{"$error":"#REF!"},{"$error":"#REF!"},{"$error":"#REF!"},{"$error":"#REF!"},{"$error":"#REF!"},{"$error":"#REF!"},{"$error":"#REF!"},{"$error":"#REF!"},{"$error":"#REF!"},{"$error":"#REF!"},{"$error":"#REF!"},{"$error":"#REF!"},{"$error":"#REF!"},{"$error":"#REF!"},{"$error":"#REF!"},{"$error":"#REF!"},{"$error":"#REF!"},{"$error":"#REF!"}]
[null,null,null,null,null,{"$f":"TEXT(F35,\"DDD\")","v":{"$error":"#REF!"}},{"$error":"#REF!"},{"$error":"#REF!"},{"$error":"#REF!"},{"$error":"#REF!"},{"$error":"#REF!"},{"$error":"#REF!"},{"$error":"#REF!"},{"$error":"#REF!"},{"$error":"#REF!"},{"$error":"#REF!"},{"$error":"#REF!"},{"$error":"#REF!"},{"$error":"#REF!"},{"$error":"#REF!"},{"$error":"#REF!"},{"$error":"#REF!"},{"$error":"#REF!"},{"$error":"#REF!"},{"$error":"#REF!"},{"$error":"#REF!"},{"$error":"#REF!"},{"$error":"#REF!"},{"$error":"#REF!"},{"$error":"#REF!"},{"$error":"#REF!"},{"$error":"#REF!"},{"$error":"#REF!"},{"$error":"#REF!"},{"$error":"#REF!"},{"$error":"#REF!"}]

{"sheet":"تشييك","index":1,"n_rows":33,"n_cols":38,"rows_kept":33,"cut":false,"hidden":false,"merged":[[0,0,0,2],[0,3,0,5]]}
[{"$f":"#REF!","v":{"$error":"#REF!"}},null,null,"مكافآت و خصميات الانتاج شهر"]
["Sl.","الجنسية","File.","Name of the employees","اسماء العاملين",21,22,23,24,25,26,27,28,29,30,31,1,2,3,4,5,6,7,8,9,10,11,12,13,14,15,16,17,18,19,20,"المجموع"]
[null,null,null,"CHECKING    تشييك","تشييك",null,null,null,null,null,null,null,null,null,null,null,null,null,null,null,null,null,null,null,null,null,null,null,null,null,null,null,null,null,null,null,{"$f":"SUM(F3:AJ3)","v":0}]
[1,"Indian",271,"Ameeruddin Mondal"," امير الدين موندال",null,null,null,null,12,null,null,null,null,null,null,null,null,null,null,null,null,null,null,null,null,null,null,null,null,null,null,null,null,null,null,12]
[2,"Bangali",1015,"Mito Chowdry"," ميتو شودهري",null,null,null,null,-12,null,null,null,null,null,null,null,null,null,null,null,null,null,null,null,null,null,null,null,null,null,null,null,null,null,null,-12]
[3,null,null,null,null,null,null,null,null,null,null,null,null,null,null,null,null,null,null,null,null,null,null,null,null,null,null,null,null,null,null,null,null,null,null,null,0]
[4,null,null,null,null,null,null,null,null,null,null,null,null,null,null,null,null,null,null,null,null,null,null,null,null,null,null,null,null,null,null,null,null,null,null,null,0]
[5,null,null,null,null,null,null,null,null,null,null,null,null,null,null,null,null,null,null,null,null,null,null,null,null,null,null,null,null,null,null,null,null,null,null,null,0]
[6,null,null,null,null,null,null,null,null,null,null,null,null,null,null,null,null,null,null,null,null,null,null,null,null,null,null,null,null,null,null,null,null,null,null,null,0]
[7,null,null,null,null,null,null,null,null,null,null,null,null,null,null,null,null,null,null,null,null,null,null,null,null,null,null,null,null,null,null,null,null,null,null,null,0]
[8,null,null,null,null,null,null,null,null,null,null,null,null,null,null,null,null,null,null,null,null,null,null,null,null,null,null,null,null,null,null,null,null,null,null,null,0]
[9,null,null,null,null,null,null,null,null,null,null,null,null,null,null,null,null,null,null,null,null,null,null,null,null,null,null,null,null,null,null,null,null,null,null,null,0]
[10,null,null,null,null,null,null,null,null,null,null,null,null,null,null,null,null,null,null,null,null,null,null,null,null,null,null,null,null,null,null,null,null,null,null,null,0]
[11,null,null,null,null,null,null,null,null,null,null,null,null,null,null,null,null,null,null,null,null,null,null,null,null,null,null,null,null,null,null,null,null,null,null,null,0]
[12,null,null,null,null,null,null,null,null,null,null,null,null,null,null,null,null,null,null,null,null,null,null,null,null,null,null,null,null,null,null,null,null,null,null,null,0]
[13,null,null,null,null,null,null,null,null,null,null,null,null,null,null,null,null,null,null,null,null,null,null,null,null,null,null,null,null,null,null,null,null,null,null,null,0]
[14,null,null,null,null,null,null,null,null,null,null,null,null,null,null,null,null,null,null,null,null,null,null,null,null,null,null,null,null,null,null,null,null,null,null,null,0]
[15,null,null,null,null,null,null,null,null,null,null,null,null,null,null,null,null,null,null,null,null,null,null,null,null,null,null,null,null,null,null,null,null,null,null,null,0]
[{"$f":"ROW()-3","v":16},null,null,null,null,null,null,null,null,null,null,null,null,null,null,null,null,null,null,null,null,null,null,null,null,null,null,null,null,null,null,null,null,null,null,null,{"$f":"SUM(F19:AJ19)","v":0},{"$f":"C19","v":0}]
[{"$f":"ROW()-3","v":17},null,null,null,null,null,null,null,null,null,null,null,null,null,null,null,null,null,null,null,null,null,null,null,null,null,null,null,null,null,null,null,null,null,null,null,{"$f":"SUM(F20:AJ20)","v":0},{"$f":"C20","v":0}]
[{"$f":"ROW()-3","v":18},null,null,null,null,null,null,null,null,null,null,null,null,null,null,null,null,null,null,null,null,null,null,null,null,null,null,null,null,null,null,null,null,null,null,null,{"$f":"SUM(F21:AJ21)","v":0},{"$f":"C21","v":0}]
[{"$f":"ROW()-3","v":19},null,null,null,null,null,null,null,null,null,null,null,null,null,null,null,null,null,null,null,null,null,null,null,null,null,null,null,null,null,null,null,null,null,null,null,{"$f":"SUM(F22:AJ22)","v":0},{"$f":"C22","v":0}]
[{"$f":"ROW()-3","v":20},null,null,null,null,null,null,null,null,null,null,null,null,null,null,null,null,null,null,null,null,null,null,null,null,null,null,null,null,null,null,null,null,null,null,null,{"$f":"SUM(F23:AJ23)","v":0},{"$f":"C23","v":0}]
[null,null,null,null,null,null,null,null,null,null,null,null,null,null,null,null,null,null,null,null,null,null,null,null,null,null,null,null,null,null,null,null,null,null,null,null,0]
[null,null,null,null,null,null,null,null,null,null,null,null,null,null,null,null,null,null,null,null,null,null,null,null,null,null,null,null,null,null,null,null,null,null,null,null,0]
[null,null,null,null,null,null,null,null,null,null,null,null,null,null,null,null,null,null,null,null,null,null,null,null,null,null,null,null,null,null,null,null,null,null,null,null,0]
[null,null,null,null,null,null,null,null,null,null,null,null,null,null,null,null,null,null,null,null,null,null,null,null,null,null,null,null,null,null,null,null,null,null,null,null,0]
[null,null,null,null,null,null,null,null,null,null,null,null,null,null,null,null,null,null,null,null,null,null,null,null,null,null,null,null,null,null,null,null,null,null,null,null,0]
[null,"الــــــــــــــــــــــمـــــــــــــــــــــــــــــــــــجــــــــــــــــــــــــــــــــــــــمــــــــــــــــــــــــــــــــــــــــــــوع",null,null,null,{"$f":"SUM(F4:F28)","v":0},{"$f":"SUM(G4:G28)","v":0},0,0,0,0,0,0,0,0,0,0,0,0,0,0,0,0,0,0,0,0,0,0,0,0,0,0,0,0,0,0]
[]
[]
[null,null,null,null,null,null,null,null,null,null,null,null,null,null,null,null,null,null,null,null,null,null,null,null,null,null,null,null,null,null,null,null,null,null,null,"مجموع المكافات",{"$f":"SUMIF(AK4:AK28,\">=0\")","v":12}]
[null,null,null,null,null,null,null,null,null,null,null,null,null,null,null,null,null,null,null,null,null,null,null,null,null,null,null,null,null,null,null,null,null,null,null,"مجموع الخصميات",{"$f":"SUMIF(AK4:AK28,\"<=0\")","v":-12}]

{"sheet":"فصوص","index":2,"n_rows":41,"n_cols":38,"rows_kept":41,"cut":false,"hidden":false,"merged":[[0,4,0,6],[0,20,0,21],[0,24,0,25]]}
[null,null,{"$f":"#REF!","v":{"$error":"#REF!"}},null,"مكاففآت و خصميات الانتاج شهر ",null,null,null,null,null,null,null,null,null,null,null,null,null,null,null,{"$f":"TODAY()","v":"2024-05-02"},null,null,"لوكس '!Print_Area",{"$f":"AL3","v":"فصوص"},null,null,null,null,null,null,null,null,null,null,1,{"$f":"بولش!AK1","v":0}]
["Sl.","الجنسية","File.","Name of the employees","اسماء العاملين",1,2,3,4,5,6,7,8,9,10,11,12,13,14,15,16,17,18,19,20,21,22,23,24,25,26,27,28,29,30,31,"المجموع"]
[null,null,null,"Stone Setter  فصوص","فصوص",null,null,null,null,null,null,null,null,null,null,null,null,null,null,null,null,null,null,null,null,null,null,null,null,null,null,null,null,null,null,null,{"$f":"SUM(F3:AJ3)","v":0},{"$f":"IF(AK$1=1,\"\",IF(E3=\"\",\"\",E3))","v":"فصوص"}]
[{"$f":"IF(C4=\"\",\"\",ROW()-3)","v":1},"Indian",2236,"Asraful alam  sekh","اسرافول عالم شيخ ",null,null,null,null,null,null,null,null,null,null,null,null,null,null,null,null,null,null,null,null,null,null,null,null,null,null,null,null,null,null,null,{"$f":"SUM(F4:AJ4)","v":0},{"$f":"IF(AK$1=1,\"\",IF(C4=\"\",\"\",C4))","v":2236}]
[2,"Indian",2494,"Sandip tarun maiti","سانديب تارون مايتي",null,null,null,null,null,null,null,null,null,null,null,null,null,null,null,null,null,null,null,null,null,null,null,null,null,null,null,null,null,null,null,{"$f":"SUM(F5:AJ5)","v":0},2494]
[3,"Indian",2499,"Anirban satyach mondal","انيربان ساتياش موندال",null,null,null,null,null,null,null,null,null,null,null,null,null,null,null,null,null,null,null,null,null,null,null,null,null,null,null,null,null,null,null,{"$f":"SUM(F6:AJ6)","v":0},2499]
[4,"Indian",2500,"Ujjwal sunil bag","اوجوال سونيل باغ",null,null,null,null,null,null,null,null,null,null,null,null,null,null,null,null,null,null,null,null,null,null,null,null,null,null,null,null,null,null,null,{"$f":"SUM(F7:AJ7)","v":0},2500]
[5,"Indian",2509,"Saifuddin almin ali sk","سيف الدين الامين علي شيخ",null,null,null,null,null,null,null,null,null,null,null,null,null,null,null,null,null,null,null,null,null,null,null,null,null,null,null,null,null,null,null,{"$f":"SUM(G8:AJ8)","v":0},2509]
[6,"INDIAN",2711,"M D samim ahamed","مد ساميم احمد",null,null,null,null,null,null,null,null,null,null,null,null,null,null,null,null,null,null,null,null,null,null,null,null,null,null,null,null,null,null,null,0,2711]
[7,null,2772,null,"سوبهانكار كانرار",null,null,null,null,null,null,null,null,null,null,null,null,null,null,null,null,null,null,null,null,null,null,null,null,null,null,null,null,null,null,null,0,2772]
[8,"INDIAN",3014,"GANESH SUNIL  MONDAL","غنيش سانيل موندال",null,null,null,null,null,null,null,null,null,null,null,null,null,null,null,null,null,null,null,null,null,null,null,null,null,null,null,null,null,null,null,0,3014]
[9,"INDIAN",3031,"ASHIM BIMAL  BOULDAS","آشيم بيمال باول داس",null,null,null,null,null,null,null,null,null,null,null,null,null,null,null,null,null,null,null,null,null,null,null,null,null,null,null,null,null,null,null,0,3031]
[10,"INDIAN",3040,"ARIF SAHIM DEWAN HUSAIN","عارف سهم حسين",null,null,null,null,null,null,null,null,null,null,null,null,null,null,null,null,null,null,null,null,null,null,null,null,null,null,null,null,null,null,null,0,3040]
[11,"Nepali",3044,"RAJAN   BISWAKARMA","راجان  بيسواكراما",null,null,null,null,null,null,null,null,null,null,null,null,null,null,null,null,null,null,null,null,null,null,null,null,null,null,null,null,null,null,null,0,3044]
[12,"INDIAN",3094,"MOHD ISMAIL MUBARAK HUSSAIN SAMANI","موهد مبارك حسين ساماني",null,null,null,null,null,null,null,null,null,null,null,null,null,null,null,null,null,null,null,null,null,null,null,null,null,null,null,null,null,null,null,0,3094]
[13,"INDIAN",3115,"ASFAR ALI  SEKH","اصفر علي سيخ",null,null,null,null,null,null,null,null,null,null,null,null,null,null,null,null,null,null,null,null,null,null,null,null,null,null,null,null,null,null,null,0,3115]
[14,"Bangali",3246,"HEDAYET ULLA","هدايت يال",null,null,null,null,null,null,null,null,null,null,null,null,null,null,null,null,null,null,null,null,null,null,null,null,null,null,null,null,null,null,null,0,3246]
[15,null,3361,null,"ظهير الدين شيخ",null,null,null,null,null,null,null,null,null,null,null,null,null,null,null,null,null,null,null,null,null,null,null,null,null,null,null,null,null,null,null,0,3361]
[16,null,3426,null,"رجاناث كانثل",null,null,null,null,null,null,null,null,null,null,null,null,null,null,null,null,null,null,null,null,null,null,null,null,null,null,null,null,null,null,null,{"$f":"SUM(F19:AJ19)","v":0},3426]
[17,null,3451,null,"رضاء ال ميديا",null,null,null,null,null,null,null,null,null,null,null,null,null,null,null,null,null,null,null,null,null,null,null,null,null,null,null,null,null,null,null,0,3451]
[18,null,3452,null,"شيخ ناشب رحمان",null,null,null,null,null,null,null,null,null,null,null,null,null,null,null,null,null,null,null,null,null,null,null,null,null,null,null,null,null,null,null,0,3452]
[19,null,3453,null,"مظفر موندال",null,null,null,null,null,null,null,null,null,null,null,null,null,null,null,null,null,null,null,null,null,null,null,null,null,null,null,null,null,null,null,0,3453]
[20,null,3454,null,"اكرم علي شيخ",null,null,null,null,null,null,null,null,null,null,null,null,null,null,null,null,null,null,null,null,null,null,null,null,null,null,null,null,null,null,null,0,3454]
[21,null,3488,null,"سوبانكار كار كانرار",null,null,null,null,null,null,null,null,null,null,null,null,null,null,null,null,null,null,null,null,null,null,null,null,null,null,null,null,null,null,null,0,3488]
[22,null,3502,null,"محمدل حسين موندال",null,null,null,null,null,null,null,null,null,null,null,null,null,null,null,null,null,null,null,null,null,null,null,null,null,null,null,null,null,null,null,0,3502]
[23,null,3503,null,"سيك سكندار بادشا",null,null,null,null,null,null,null,null,null,null,null,null,null,null,null,null,null,null,null,null,null,null,null,null,null,null,null,null,null,null,null,0,3503]
[24,null,3506,null,"أظهرالدين سك",null,null,null,null,null,null,null,null,null,null,null,null,null,null,null,null,null,null,null,null,null,null,null,null,null,null,null,null,null,null,null,0,3506]
[25,null,3507,null,"سيك اشيف علي",null,null,null,null,null,null,null,null,null,null,null,null,null,null,null,null,null,null,null,null,null,null,null,null,null,null,null,null,null,null,null,0,3507]
["",null,null,null,null,null,null,null,null,null,null,null,null,null,null,null,null,null,null,null,null,null,null,null,null,null,null,null,null,null,null,null,null,null,null,null,0,""]
["",null,null,null,null,null,null,null,null,null,null,null,null,null,null,null,null,null,null,null,null,null,null,null,null,null,null,null,null,null,null,null,null,null,null,null,0]
[null,"الــــــــــــــــــــــمـــــــــــــــــــــــــــــــــــجــــــــــــــــــــــــــــــــــــــمــــــــــــــــــــــــــــــــــــــــــــوع",null,null,"الــــــــــــــــــــــمـــــــــــــــــــــــــــــــــــجــــــــــــــــــــــــــــــــــــــمــــــــــــــــــــــــــــــــــــــــــــوع",{"$f":"SUM(F4:F28)","v":0},0,0,0,0,0,0,0,0,0,0,0,0,0,0,0,0,0,0,0,0,0,0,0,0,0,0,0,0,0,0,{"$f":"SUM(F31:AJ31)","v":0}]
[]
[null,null,null,null,null,null,null,null,null,null,null,null,null,null,null,null,null,null,null,null,null,null,null,null,null,null,null,null,null,null,null,null,null,null,null,"مجموع المكافات",{"$f":"SUMIF(AK4:AK30,\">=0\")","v":0}]
[null,null,null,null,null,null,null,null,null,null,null,null,null,null,null,null,null,null,null,null,null,null,null,null,null,null,null,null,null,null,null,null,null,null,null,"مجموع الخصميات",{"$f":"SUMIF(AK4:AK30,\"<=0\")","v":0}]
[]
[]
[]
[]
[]
[null,null,null,null,{"$f":"#REF!","v":{"$error":"#REF!"}},{"$f":"E40","v":{"$error":"#REF!"}},{"$f":"F40+1","v":{"$error":"#REF!"}},{"$f":"G40+1","v":{"$error":"#REF!"}},{"$error":"#REF!"},{"$error":"#REF!"},{"$error":"#REF!"},{"$error":"#REF!"},{"$error":"#REF!"},{"$error":"#REF!"},{"$error":"#REF!"},{"$error":"#REF!"},{"$error":"#REF!"},{"$error":"#REF!"},{"$error":"#REF!"},{"$error":"#REF!"},{"$error":"#REF!"},{"$error":"#REF!"},{"$error":"#REF!"},{"$error":"#REF!"},{"$error":"#REF!"},{"$error":"#REF!"},{"$error":"#REF!"},{"$error":"#REF!"},{"$error":"#REF!"},{"$error":"#REF!"},{"$error":"#REF!"},{"$error":"#REF!"},{"$error":"#REF!"},{"$error":"#REF!"},{"$error":"#REF!"},{"$error":"#REF!"}]
[null,null,null,null,null,{"$f":"TEXT(F40,\"DDD\")","v":{"$error":"#REF!"}},{"$f":"TEXT(G40,\"DDD\")","v":{"$error":"#REF!"}},{"$error":"#REF!"},{"$error":"#REF!"},{"$error":"#REF!"},{"$error":"#REF!"},{"$error":"#REF!"},{"$error":"#REF!"},{"$error":"#REF!"},{"$error":"#REF!"},{"$error":"#REF!"},{"$error":"#REF!"},{"$error":"#REF!"},{"$error":"#REF!"},{"$error":"#REF!"},{"$error":"#REF!"},{"$error":"#REF!"},{"$error":"#REF!"},{"$error":"#REF!"},{"$error":"#REF!"},{"$error":"#REF!"},{"$error":"#REF!"},{"$error":"#REF!"},{"$error":"#REF!"},{"$error":"#REF!"},{"$error":"#REF!"},{"$error":"#REF!"},{"$error":"#REF!"},{"$error":"#REF!"},{"$error":"#REF!"},{"$error":"#REF!"}]

{"sheet":"مكافآت","index":3,"n_rows":6,"n_cols":8,"rows_kept":6,"cut":false,"hidden":false,"merged":[[0,0,0,4]]}
[{"$f":"G6","v":{"$error":"#REF!"}},null,null,null,null,"اختر اسم الشيت او القسم"]
["Sl.","File.","اسماء العاملين","المجموع","التوقيع"]
[null,null,null,0,"الإجمالى",null,{"$f":"#REF!","v":{"$error":"#REF!"}},"  لقسم"]
[null,null,null,null,null,null,"مكافآت الانتاج عن شهر "]
[null,null,null,null,null,null,{"$f":"TEXT(G3,\"MMM.YY\")","v":{"$error":"#REF!"}}]
[null,null,null,null,null,null,{"$f":"G4& \" \"&G5&\" \"&H5&H3&\" \" &G1","v":{"$error":"#REF!"}}]

{"sheet":"خصومات","index":4,"n_rows":20,"n_cols":8,"rows_kept":20,"cut":false,"hidden":false,"merged":[[0,0,0,4]]}
[{"$f":"G6","v":{"$error":"#REF!"}},null,null,null,null,"اختر اسم الشيت او القسم"]
["Sl.","File.","اسماء العاملين","المجموع","التوقيع"]
[1,899," سراج الاسلام   محمدعبدالرشيد",-1,null,null,{"$f":"#REF!","v":{"$error":"#REF!"}},"  لقسم"]
[2,929," منتو   عين الحق",-1,null,null,"خصميات الانتاج عن شهر "]
[3,1234," سهيل أحمد",-1,null,null,{"$f":"TEXT(G3,\"MMM.YY\")","v":{"$error":"#REF!"}}]
[4,1410," سلطان محمد  نظام الدين",-1,null,null,{"$f":"G4& \" \"&G5 &H3&\" \" &G1","v":{"$error":"#REF!"}}]
[5,2832," جيت باهادور  نيبالي",-1]
[6,2839," جانجا باهادور  دهيمال",-1]
[7,2854,"غوبال براساد راج بانشي",-1]
[8,3003," رام جاران  سونار",-1]
[9,3022," امريت كومار  موخييا",-1]
[10,3060," سونيل كومار  ذاكور",-1]
[11,3068," سانتوش   موخييا",-1]
[12,3075," بيمال   غاجمر",-1]
[13,3091,"بينود كومار راجبانشي",-1]
[14,3093," كارنا باهدور  اتشاي",-1]
[15,3229," محمد شلفيكول اسلام شاكين",-1]
[16,3312," مد سكب مد سكب",-1]
[17,3345," محمد معصوم بله بله محمد",-1]
[null,null,null,-17,"الإجمالى"]